bitfinex-derivatives/quotes_ETHF0:USTF0_20241013
["timestamp","ask_amount","ask_price","bid_price","bid_amount"]
[1728849316466,0.8374106,2459.1,2459.0,3.59168511]
[1728849316663,0.8374106,2459.1,2459.0,3.59168357]
[1728849317071,0.8374106,2459.1,2459.0,3.42292457]
[1728849317276,0.8374106,2459.1,2459.0,3.59170409]
[1728849317572,1.2441206,2459.1,2459.0,2.88902734]
[1728849317769,1.2441206,2459.1,2459.0,3.18499657]
[1728849318980,5.3105206,2459.1,2459.0,0.50866895]
[1728849319477,6.6305206,2459.1,2459.0,0.50866895]
[1728849319875,0.40673,2459.0,2458.9,1.06035839]
[1728849320068,0.40673,2459.0,2458.9,4.60433611]
[1728849320272,0.40673,2459.0,2458.9,3.18515685]
[1728849320475,0.4507406,2459.0,2458.9,3.18515685]
[1728849320783,0.4507406,2459.0,2458.9,2.88907727]
[1728849322179,3.6585406,2459.0,2458.9,2.88907727]
[1728849325574,3.6585406,2459.0,2458.9,1.82871888]
[1728849326083,3.6585406,2459.0,2458.9,2.88907727]
[1728849326284,3.6585406,2459.0,2458.9,1.82871888]
[1728849326581,3.6585406,2459.0,2458.9,2.88907727]
[1728849327083,3.6585406,2459.0,2458.9,1.82871888]
[1728849328082,3.6585406,2459.0,2458.9,2.8890818]
[1728849328283,3.6585406,2459.0,2458.9,1.82872341]
[1728849328579,3.6585406,2459.0,2458.9,2.8890818]
[1728849331389,3.6585406,2459.0,2458.9,2.38035839]
[1728849331980,3.6585406,2459.0,2458.9,2.88907438]
[1728849335384,3.6585406,2459.0,2458.9,2.88906155]
[1728849335781,3.6585406,2459.0,2458.9,2.88906091]
[1728849339290,3.6585406,2459.0,2458.9,3.39776571]
[1728849339593,3.6585406,2459.0,2458.9,2.88906319]
[1728849346590,3.6585406,2459.0,2458.9,2.38035839]
[1728849346799,3.6585406,2459.0,2458.9,2.8890626]
[1728849350702,3.6585406,2459.0,2458.9,2.38035839]
[1728849350902,3.6585406,2459.0,2458.9,2.88906679]
[1728849355007,3.6585406,2459.0,2458.9,3.18513412]
[1728849355605,3.6585406,2459.0,2458.9,2.88906679]
[1728849355909,3.6585406,2459.0,2458.9,3.18513713]
[1728849356505,3.6585406,2459.0,2458.9,4.60430874]
[1728849356812,3.6585406,2459.0,2458.9,2.88906679]
[1728849357411,3.6585406,2459.0,2458.9,3.18514664]
[1728849357715,3.6585406,2459.0,2458.9,4.60435075]
[1728849357912,3.6585406,2459.0,2458.9,4.60435234]
[1728849358113,3.6585406,2459.0,2458.9,4.60433729]
[1728849361219,3.6585406,2459.0,2458.9,4.60434476]
[1728849361804,3.6585406,2459.0,2458.9,3.79956409]
[1728849362105,3.6585406,2459.0,2458.9,4.60433298]
[1728849364513,0.4507406,2459.0,2458.9,4.985846]
[1728849364717,3.6585406,2459.0,2458.9,5.11302191]
[1728849364919,3.6585406,2459.0,2458.9,4.60553352]
[1728849365107,3.6585406,2459.0,2458.9,5.13254622]
[1728849365512,3.6585406,2459.0,2458.9,5.53928622]
[1728849365708,3.6585406,2459.0,2458.9,3.54396344]
[1728849365914,3.6585406,2459.0,2458.9,5.13254622]
[1728849367521,3.2518106,2459.0,2458.9,5.53928622]
[1728849367817,0.0440106,2459.0,2458.9,6.35316106]
[1728849368222,0.0440106,2459.0,2458.9,6.63898515]
[1728849368423,0.0440106,2459.0,2458.9,6.76612605]
[1728849368617,0.0440106,2459.0,2458.9,6.76612385]
[1728849368923,0.0440106,2459.0,2458.9,6.76611045]
[1728849369822,0.0440106,2459.0,2458.9,5.34690475]
[1728849372218,0.0440106,2459.0,2458.9,4.02424422]
[1728849372426,0.0440106,2459.0,2458.9,4.53291345]
[1728849372619,0.0440106,2459.0,2458.9,4.53291234]
[1728849373922,0.0440106,2459.0,2458.9,5.95107042]
[1728849374219,0.0440106,2459.0,2458.9,6.76492821]
[1728849374823,0.0440106,2459.0,2458.9,5.34677013]
[1728849375125,0.0440106,2459.0,2458.9,4.53291234]
[1728849376128,0.0440106,2459.0,2458.9,4.02422318]
[1728849376419,0.0440106,2459.0,2458.9,4.53288435]
[1728849376725,0.0440106,2459.0,2458.9,5.34674222]
[1728849376926,0.0440106,2459.0,2458.9,4.53288435]
[1728849378329,0.0440106,2459.0,2458.9,5.34674223]
[1728849378625,0.0440106,2459.0,2458.9,4.53288435]
[1728849379228,0.0440106,2459.0,2458.9,5.95088687]
[1728849379426,0.0440106,2459.0,2458.9,5.53788687]
[1728849379632,0.4485106,2459.0,2458.9,5.53788687]
[1728849379832,0.4485106,2459.0,2458.9,5.02923312]
[1728849380129,0.4485106,2459.0,2458.9,5.53790484]
[1728849383528,0.8448106,2459.0,2458.9,4.86049323]
[1728849383726,0.8448106,2459.0,2458.9,5.53790163]
[1728849384125,0.8448106,2459.0,2458.9,6.04657345]
[1728849384428,0.8448106,2459.0,2458.9,5.53790132]
[1728849390230,0.8448106,2459.0,2458.9,5.53789489]
[1728849391033,0.8448106,2459.0,2458.9,4.73331887]
[1728849391236,0.8448106,2459.0,2458.9,5.5379085]
[1728849392438,6.6379406,2459.0,2458.9,2.22258572]
[1728849392642,6.2312106,2459.0,2458.6,1.58858278]
[1728849392939,0.40679,2458.6,2458.5,1.58858278]
[1728849393135,0.40679,2458.6,2458.5,2.73600027]
[1728849393437,0.81249,2458.6,2458.5,2.73600027]
[1728849393647,0.8565006,2458.6,2458.5,1.32]
[1728849395842,1.6803006,2458.6,2458.5,1.32]
[1728849397148,7.6777106,2458.6,2458.3,1.32]
[1728849397340,4.93462,2458.4,2458.3,1.32]
[1728849397535,4.9786306,2458.4,2458.3,1.32]
[1728849397735,4.5718106,2458.4,2458.1,0.4034]
[1728849397936,0.40686,2458.2,2458.0,0.40688]
[1728849398137,0.40686,2458.2,2458.1,1.32]
[1728849398345,0.80556,2458.2,2458.1,1.32]
[1728849398740,0.8495706,2458.2,2458.1,1.32]
[1728849401447,4.0573706,2458.2,2458.1,1.32]
[1728849408948,3.6505106,2458.2,2458.1,1.72687]
[1728849409151,0.0440106,2458.2,2458.1,7.11487]
[1728849409350,0.0440106,2458.2,2458.1,13.11487]
[1728849409547,3.2078,2458.5,2458.1,12.708]
[1728849409755,3.2078,2458.5,2458.4,1.72682]
[1728849414757,3.2078,2458.5,2458.4,5.79482]
[1728849415661,0.3917,2458.7,2458.4,5.388]
[1728849415960,0.3917,2458.7,2458.6,1.72679]
[1728849418061,3.6075,2458.9,2458.6,1.32]
[1728849418263,4.01424,2458.9,2458.8,1.32]
[1728849420066,3.2078,2458.9,2458.8,1.72676]
[1728849420262,3.2078,2458.9,2458.8,2.14606]
[1728849422066,0.3892,2459.0,2458.8,2.14606]
[1728849422266,0.3892,2459.0,2458.9,1.32]
[1728849425058,1.7092,2459.0,2458.9,1.32]
[1728849425471,2.11593,2459.0,2458.9,1.32]
[1728849427066,4.917,2459.0,2458.9,1.32]
[1728849428572,3.597,2459.0,2458.9,1.32]
[1728849430076,0.3892,2459.0,2458.9,1.32]
[1728849430266,3.597,2459.0,2458.9,1.32]
[1728849433275,3.597,2459.0,2458.9,1.72674]
[1728849433475,3.597,2459.0,2458.9,1.32]
[1728849433978,4.00373,2459.0,2458.9,1.32]
[1728849436778,3.597,2459.0,2458.9,1.32]
[1728849439781,0.3892,2459.0,2458.9,1.32]
[1728849440078,3.597,2459.0,2458.9,1.32]
[1728849440273,0.3892,2459.0,2458.9,1.32]
[1728849440466,4.00373,2459.0,2458.9,1.32]
[1728849440879,0.79593,2459.0,2458.9,1.32]
[1728849441074,4.00373,2459.0,2458.9,1.32]
[1728849441975,4.917,2459.0,2458.8,1.32]
[1728849442175,2.11564,2458.9,2458.8,1.32]
[1728849443176,0.40677,2458.8,2458.7,1.32]
[1728849443377,0.82527,2458.8,2458.7,1.32]
[1728849443672,0.4185,2458.8,2458.7,1.32]
[1728849444671,0.82526,2458.8,2458.7,1.32]
[1728849444872,0.4185,2458.8,2458.7,1.72678]
[1728849445679,0.4185,2458.8,2458.7,1.32]
[1728849446076,0.4185,2458.8,2458.7,2.1291]
[1728849446275,3.597,2459.0,2458.8,0.40675]
[1728849446474,3.597,2459.0,2458.9,1.32]
[1728849446673,3.597,2459.0,2458.9,1.72674]
[1728849449479,3.2078,2459.0,2458.9,1.72674]
[1728849451872,1.2059,2459.2,2458.9,1.72674]
[1728849451873,0.40671,2459.1,2458.9,1.72674]
[1728849452074,0.7992,2459.2,2459.0,1.32]
[1728849452277,1.20591,2459.2,2459.1,1.32]
[1728849452480,4.41371,2459.2,2459.1,1.32]
[1728849452675,8.48011,2459.2,2459.1,1.32]
[1728849453079,4.41371,2459.2,2459.1,1.32]
[1728849455081,1.20591,2459.2,2459.1,1.32]
[1728849455281,4.41371,2459.2,2459.1,1.32]
[1728849455682,1.20591,2459.2,2459.1,1.32]
[1728849455887,4.41371,2459.2,2459.1,1.32]
[1728849457487,1.20591,2459.2,2459.1,1.32]
[1728849457684,4.41371,2459.2,2459.1,1.32]
[1728849461279,4.007,2459.2,2459.1,1.32]
[1728849462099,5.73369,2459.2,2459.1,1.32]
[1728849465679,5.327,2459.2,2459.1,1.32]
[1728849465882,5.73369,2459.2,2459.1,1.32]
[1728849466682,4.41369,2459.2,2459.1,1.32]
[1728849467079,4.41369,2459.2,2458.9,0.40673]
[1728849467282,4.41369,2459.2,2459.1,1.32]
[1728849468294,0.40671,2459.1,2458.9,0.40673]
[1728849468489,5.327,2459.2,2458.8,3.31533278]
[1728849468490,0.40673,2459.0,2458.8,3.31533278]
[1728849468798,3.6283,2458.9,2458.8,3.31533278]
[1728849469095,4.042,2458.9,2458.8,5.24200509]
[1728849469485,4.042,2458.9,2458.8,5.5364549]
[1728849470294,0.8342,2458.9,2458.8,5.5364549]
[1728849470984,0.8342,2458.9,2458.8,2.52990539]
[1728849471184,0.8342,2458.9,2458.8,3.94799447]
[1728849471798,0.8342,2458.9,2458.8,5.53657725]
[1728849472400,0.8342,2458.9,2458.8,3.94799447]
[1728849473694,0.8342,2458.9,2458.8,5.53657725]
[1728849474500,0.8342,2458.9,2458.8,3.94790585]
[1728849474699,0.8342,2458.9,2458.8,3.65341438]
[1728849474898,0.8342,2458.9,2458.8,3.94789379]
[1728849475798,0.8342,2458.9,2458.8,5.53647657]
[1728849476701,0.4137,2458.9,2458.8,3.94789379]
[1728849477307,0.4137,2458.9,2458.8,5.53647657]
[1728849478498,0.4137,2458.9,2458.8,5.53647658]
[1728849479299,0.4137,2458.9,2458.8,5.53632415]
[1728849481101,0.4137,2458.9,2458.8,5.24184394]
[1728849481303,0.4137,2458.9,2458.8,4.73313915]
[1728849482704,0.4137,2458.9,2458.8,4.73317386]
[1728849487506,0.4137,2458.9,2458.8,4.73330525]
[1728849488607,0.82044,2458.9,2458.8,4.73330525]
[1728849489115,0.4137,2458.9,2458.8,4.73330525]
[1728849492116,0.4137,2458.9,2458.8,4.73382981]
[1728849498724,0.4137,2458.9,2458.8,4.737887]
[1728849502109,0.4137,2458.9,2458.8,4.73782745]
[1728849506622,0.4137,2458.9,2458.8,3.31938997]
[1728849506824,0.4137,2458.9,2458.8,4.73769513]
[1728849509927,0.4137,2458.9,2458.8,3.41769513]
[1728849510121,0.4137,2458.9,2458.8,4.73769513]
[1728849510429,0.82044,2458.9,2458.8,4.73769513]
[1728849511331,0.4137,2458.9,2458.8,4.73769513]
[1728849511531,0.4137,2458.9,2458.8,4.73786238]
[1728849516032,0.82044,2458.9,2458.8,4.73786238]
[1728849516227,0.4137,2458.9,2458.8,4.73786238]
[1728849516435,0.4137,2458.9,2458.8,4.73777504]
[1728849518235,0.82044,2458.9,2458.8,4.73777504]
[1728849518831,0.82044,2458.9,2458.8,4.33102504]
[1728849519938,6.20764,2458.9,2458.8,1.06172601]
[1728849520130,0.40676,2458.8,2458.7,1.06172601]
[1728849520329,1.72676,2458.8,2458.7,1.06172601]
[1728849521728,1.72676,2458.8,2458.7,2.38172601]
[1728849521729,0.40676,2458.8,2458.7,2.38172601]
[1728849523336,1.7337,2458.9,2458.7,2.38172601]
[1728849523635,0.40676,2458.8,2458.7,2.38172601]
[1728849525033,0.40676,2458.8,2458.7,1.32]
[1728849525626,3.61456,2458.8,2458.7,1.32]
[1728849525833,3.61456,2458.8,2458.7,1.72678]
[1728849527129,0.40676,2458.8,2458.7,1.72678]
[1728849529028,0.40676,2458.8,2458.7,1.32]
[1728849531248,5.34825,2458.9,2458.7,1.72677]
[1728849531536,4.9415,2458.9,2458.7,1.72677]
[1728849531740,0.40676,2458.8,2458.7,1.72677]
[1728849533234,4.9415,2458.9,2458.7,1.72677]
[1728849533434,5.34825,2458.9,2458.7,1.72677]
[1728849533635,3.6215,2458.9,2458.8,1.72676]
[1728849533837,3.2078,2458.9,2458.8,2.78848601]
[1728849534443,3.2078,2458.9,2458.8,3.17248601]
[1728849538538,0.3826,2459.0,2458.9,0.40674]
[1728849538839,0.3826,2459.0,2458.9,1.72674]
[1728849539637,0.40672,2459.1,2458.9,1.72674]
[1728849539838,0.40672,2459.1,2459.0,1.32]
[1728849547549,4.027,2459.2,2459.0,1.32]
[1728849547751,4.43371,2459.2,2459.0,1.72673]
[1728849547944,0.40671,2459.1,2459.0,1.32]
[1728849548346,4.027,2459.2,2459.0,1.32]
[1728849548546,4.4337,2459.2,2459.1,1.32]
[1728849555974,4.027,2459.2,2459.1,1.32]
[1728849556174,4.43369,2459.2,2459.1,1.32]
[1728849561053,1.22589,2459.2,2459.1,1.32]
[1728849561346,4.43369,2459.2,2459.1,1.32]
[1728849564157,1.22589,2459.2,2459.1,1.32]
[1728849564459,4.43369,2459.2,2459.1,1.32]
[1728849565856,0.40672,2459.1,2458.9,2.25635601]
[1728849566054,5.7537,2459.2,2459.0,1.72672]
[1728849566253,4.4337,2459.2,2459.0,1.72672]
[1728849568461,1.2259,2459.2,2459.0,1.72672]
[1728849569362,4.4337,2459.2,2459.0,1.72672]
[1728849571658,1.2259,2459.2,2459.0,1.72672]
[1728849572459,4.4337,2459.2,2459.0,1.72672]
[1728849573666,1.2259,2459.2,2459.0,1.72672]
[1728849576472,1.2259,2459.2,2459.0,2.78844601]
[1728849577076,1.2259,2459.2,2459.0,1.72672]
[1728849577277,1.2259,2459.2,2459.0,2.78844601]
[1728849588083,0.40671,2459.1,2459.0,1.06172601]
[1728849588279,0.8192,2459.2,2459.0,1.06172601]
[1728849588482,0.40671,2459.1,2459.0,1.06172601]
[1728849590186,0.40671,2459.1,2459.0,2.38172601]
[1728849590382,0.40671,2459.1,2459.0,3.79945947]
[1728849592185,0.40671,2459.1,2459.0,3.79947365]
[1728849595092,3.61451,2459.1,2459.0,3.79947365]
[1728849596902,3.61451,2459.1,2459.0,3.79953898]
[1728849597298,3.61451,2459.1,2459.0,2.38172601]
[1728849597505,3.61451,2459.1,2459.0,3.79956672]
[1728849597696,3.61451,2459.1,2459.0,2.38172601]
[1728849598603,3.61451,2459.1,2459.0,3.79954367]
[1728849598806,0.40671,2459.1,2459.0,3.79954367]
[1728849599101,0.40671,2459.1,2459.0,4.20627367]
[1728849599804,0.40671,2459.1,2459.0,4.59727367]
[1728849600302,0.40671,2459.1,2459.0,4.19054367]
[1728849600699,5.347,2459.2,2459.0,4.19054367]
[1728849600898,4.4337,2459.2,2459.1,1.32]
[1728849601102,4.4337,2459.2,2459.1,2.38172601]
[1728849601703,3.6146,2459.2,2459.1,2.95574626]
[1728849602012,3.2078,2459.2,2459.1,6.22609139]
[1728849602303,3.2078,2459.2,2459.1,6.35325328]
[1728849602507,0.8218,2459.4,2459.1,6.35325328]
[1728849602508,0.8218,2459.4,2459.2,0.40668]
[1728849602804,8.31821477,2459.7,2459.1,6.38140455]
[1728849602805,3.18866477,2459.7,2459.4,0.40665]
[1728849603105,4.93444,2459.5,2459.4,1.06063642]
[1728849603304,4.93444,2459.5,2459.4,0.50860788]
[1728849603501,4.93444,2459.5,2459.1,1.70726088]
[1728849603502,0.40669,2459.2,2459.1,0.64662446]
[1728849603701,4.93449,2459.2,2459.1,0.26762446]
[1728849604404,4.93449,2459.2,2459.1,1.28500366]
[1728849604704,4.93449,2459.2,2459.1,0.77631163]
[1728849606008,9.00089,2459.2,2459.1,0.77631163]
[1728849606504,8.5942,2459.2,2459.0,1.06063642]
[1728849606711,1.20121,2459.1,2459.0,2.38063642]
[1728849608308,3.6145,2459.2,2459.0,2.78735642]
[1728849608609,0.4067,2459.2,2459.1,2.1349]
[1728849609508,3.6142,2459.3,2459.1,2.54161]
[1728849609808,0.40664,2459.5,2459.3,0.40667]
[1728849610005,0.40664,2459.5,2459.4,1.7076]
[1728849610907,4.45803,2459.6,2459.4,2.11426]
[1728849611113,3.2078,2459.6,2459.5,2.53434]
[1728849611505,3.2078,2459.6,2459.5,2.1277]
[1728849612311,3.2078,2459.6,2459.5,2.53434]
[1728849612500,3.2078,2459.6,2459.5,6.60399505]
[1728849612706,3.2078,2459.6,2459.5,5.54335863]
[1728849613515,3.2078,2459.6,2459.5,9.60895863]
[1728849614012,3.2078,2459.6,2459.5,9.20083422]
[1728849614202,4.93443,2459.6,2459.5,2.22259425]
[1728849614406,4.93443,2459.6,2459.5,1.86643508]
[1728849614608,4.5278,2459.6,2459.3,1.05873508]
[1728849614816,3.12921,2459.5,2459.3,1.32]
[1728849615004,0.40666,2459.4,2459.3,1.32]
[1728849617313,0.40669,2459.2,2459.1,1.47763508]
[1728849617516,4.93449,2459.2,2459.1,1.7389]
[1728849617713,3.61449,2459.2,2459.1,1.7389]
[1728849619411,4.5278,2459.2,2458.9,1.05873508]
[1728849619614,0.40674,2458.9,2458.8,2.37873508]
[1728849619815,3.61454,2458.9,2458.8,1.32]
[1728849620207,0.40676,2458.8,2458.7,1.48163508]
[1728849620417,0.40676,2458.8,2458.4,2.49057615]
[1728849620418,1.32,2458.8,2458.5,2.37873508]
[1728849620603,4.93459,2458.6,2458.5,1.32]
[1728849621609,4.93459,2458.6,2458.2,2.79323997]
[1728849621610,0.40684,2458.3,2458.2,1.43773508]
[1728849621809,3.61464,2458.3,2458.2,1.32]
[1728849623021,4.01194,2458.3,2458.2,1.32]
[1728849623320,4.39464,2458.3,2458.2,1.32]
[1728849624309,1.01715,2458.2,2457.9,0.379]
[1728849624509,1.01715,2458.2,2457.7,1.97573]
[1728849624510,4.5278,2458.0,2457.7,1.97573]
[1728849624819,4.93469,2458.0,2457.9,1.32]
[1728849625825,3.2078,2458.0,2457.7,1.1898]
[1728849626018,0.40691,2457.9,2457.7,1.1898]
[1728849626316,3.6147,2458.0,2457.7,1.59674]
[1728849627708,3.2078,2458.0,2457.7,1.59674]
[1728849627911,0.40691,2457.9,2457.7,1.59674]
[1728849628312,0.40691,2457.9,2457.7,1.1898]
[1728849628512,0.40691,2457.9,2457.7,1.59674]
[1728849629514,0.40692,2457.8,2457.7,1.1898]
[1728849629914,0.40692,2457.8,2457.7,5.2586]
[1728849630718,0.40692,2457.8,2457.7,1.1898]
[1728849631524,0.40692,2457.8,2457.7,0.7896]
[1728849631723,0.40692,2457.8,2457.7,0.3951]
[1728849632024,3.2078,2458.0,2457.7,0.3951]
[1728849632220,0.40691,2457.9,2457.7,0.80204]
[1728849632615,3.2078,2458.0,2457.7,0.3951]
[1728849632812,3.2078,2458.0,2457.9,0.40691]
[1728849633316,3.2078,2458.0,2457.9,5.25301]
[1728849637425,0.40688,2458.1,2457.9,4.8461]
[1728849637621,0.40688,2458.1,2458.0,0.40689]
[1728849640531,0.40687,2458.2,2458.1,0.40687]
[1728849640929,0.40687,2458.2,2457.9,0.7773]
[1728849640930,0.40687,2458.1,2458.0,0.40688]
[1728849642233,4.22489,2458.4,2457.9,0.7773]
[1728849642442,0.40689,2458.0,2457.9,1.18421]
[1728849643032,0.40689,2458.0,2457.9,5.25301]
[1728849643739,0.40689,2458.0,2457.9,1.18421]
[1728849644037,0.40689,2458.0,2457.9,0.7773]
[1728849644438,0.40689,2458.0,2457.9,1.18421]
[1728849644638,0.40689,2458.0,2457.9,0.7773]
[1728849644834,0.40689,2458.0,2457.8,3.26691]
[1728849645041,0.40692,2457.8,2457.7,0.3951]
[1728849645534,1.01723,2458.0,2457.6,0.4208]
[1728849645733,0.40696,2457.6,2457.5,3.2078]
[1728849646043,0.40696,2457.6,2457.5,0.40696]
[1728849646735,0.4122,2457.7,2457.4,0.845]
[1728849646936,0.40697,2457.5,2457.4,0.83039]
[1728849649439,3.2078,2457.5,2457.1,3.2828]
[1728849649645,0.407,2457.4,2457.3,0.40701]
[1728849650246,0.40701,2457.3,2457.2,5.41755396]
[1728849650445,0.80551,2457.3,2457.2,5.41755396]
[1728849650746,0.3985,2457.3,2457.2,9.48715396]
[1728849652146,3.2078,2457.5,2457.2,9.08013396]
[1728849652446,0.8103,2457.4,2457.3,0.407]
[1728849653343,0.40701,2457.3,2457.2,4.58893396]
[1728849653546,0.40705,2457.1,2457.0,0.40705]
[1728849653752,0.40706,2457.0,2456.9,0.82947]
[1728849654045,0.4033,2457.0,2456.9,0.82947]
[1728849656140,3.2078,2457.5,2456.9,7.3528]
[1728849656341,0.793,2457.4,2457.3,0.407]
[1728849656740,0.386,2457.4,2457.3,0.407]
[1728849657044,4.43308,2457.5,2457.4,0.40699]
[1728849657045,3.2078,2457.5,2457.4,0.40699]
[1728849657237,3.2078,2457.5,2457.4,4.87509]
[1728849657546,3.2078,2457.5,2457.4,5.28539]
[1728849657743,0.81623,2457.8,2457.6,0.40695]
[1728849658445,0.81623,2457.8,2457.4,0.8088]
[1728849658646,0.81623,2457.8,2457.6,0.40695]
[1728849660446,0.4093,2457.8,2457.7,0.40694]
[1728849660750,0.81623,2457.8,2457.7,0.40694]
[1728849661048,0.4093,2457.8,2457.6,0.40695]
[1728849661249,0.81624,2457.8,2457.6,0.40695]
[1728849661450,0.40694,2457.7,2457.5,0.40697]
[1728849663248,0.40696,2457.6,2457.4,0.3985]
[1728849663443,0.40696,2457.6,2457.5,0.40697]
[1728849663749,0.40696,2457.6,2457.4,0.3985]
[1728849664050,0.4093,2457.8,2457.4,0.3985]
[1728849664255,0.40697,2457.5,2457.4,0.80548]
[1728849665548,0.40697,2457.5,2457.4,1.86421508]
[1728849666646,0.40697,2457.5,2457.4,1.46571508]
[1728849666853,0.40697,2457.5,2457.4,0.40698]
[1728849667155,0.40699,2457.4,2457.3,1.46572508]
[1728849667345,0.79539,2457.4,2457.3,3.68331841]
[1728849667649,0.3884,2457.4,2457.3,4.2172233]
[1728849667845,0.3884,2457.4,2457.3,4.21748537]
[1728849669047,0.40695,2457.7,2457.6,0.40694]
[1728849669252,0.40695,2457.7,2457.6,0.40695]
[1728849673855,0.40695,2457.7,2457.6,1.72695]
[1728849674543,0.40695,2457.7,2457.6,1.32]
[1728849675456,0.40695,2457.7,2457.6,1.72696]
[1728849676149,0.3884,2457.8,2457.6,1.72696]
[1728849676350,0.40694,2457.7,2457.6,1.72696]
[1728849677256,0.40694,2457.7,2457.6,0.40696]
[1728849677644,0.40694,2457.7,2457.5,1.87500634]
[1728849678052,0.40694,2457.7,2457.6,0.40696]
[1728849678453,0.40696,2457.6,2457.5,2.28197634]
[1728849678655,0.40694,2457.7,2457.6,0.40695]
[1728849680254,0.3884,2457.8,2457.5,1.87500634]
[1728849680553,0.40696,2457.7,2457.5,2.28197634]
[1728849680757,1.72696,2457.6,2457.5,1.06080634]
[1728849680959,0.40697,2457.5,2457.4,1.06080634]
[1728849681164,2.91427,2457.5,2457.4,1.06080634]
[1728849681460,0.40699,2457.4,2457.3,1.06080634]
[1728849681759,0.40699,2457.4,2457.3,1.56980802]
[1728849682553,0.40699,2457.4,2457.3,2.88980802]
[1728849683461,0.40699,2457.4,2457.3,3.05621317]
[1728849683753,0.40699,2457.4,2457.3,2.38080634]
[1728849684262,0.40701,2457.3,2457.2,2.38080634]
[1728849684458,0.40701,2457.3,2457.2,4.47276596]
[1728849684759,0.40701,2457.3,2457.2,4.87978596]
[1728849685157,0.40701,2457.3,2457.2,2.88982217]
[1728849685354,0.40701,2457.3,2457.2,2.38080634]
[1728849685765,0.40702,2457.2,2457.1,1.06080634]
[1728849686065,2.14652,2457.2,2457.1,3.15303016]
[1728849686263,2.14652,2457.2,2457.1,1.73629302]
[1728849687167,2.14652,2457.2,2457.1,3.15313803]
[1728849687558,0.82652,2457.2,2457.1,3.56028867]
[1728849687867,0.40699,2457.4,2457.3,0.40701]
[1728849688057,2.544,2457.5,2457.3,1.72701]
[1728849688264,2.95099,2457.5,2457.3,1.72701]
[1728849688461,2.95099,2457.5,2457.3,1.32]
[1728849688662,2.95099,2457.5,2457.4,0.40699]
[1728849688663,2.544,2457.5,2457.4,0.40699]
[1728849688865,2.95098,2457.5,2457.4,0.40699]
[1728849690360,2.95098,2457.5,2457.3,2.7888559]
[1728849690761,2.95098,2457.5,2457.4,0.40699]
[1728849691161,2.95098,2457.5,2457.3,2.7888559]
[1728849691562,2.95098,2457.5,2457.4,0.40699]
[1728849694278,0.40699,2457.4,2457.3,1.0618559]
[1728849694564,0.40699,2457.4,2457.2,1.59263997]
[1728849694565,0.40701,2457.3,2457.2,1.0618559]
[1728849694759,1.72701,2457.3,2457.2,1.57088936]
[1728849695664,1.72701,2457.3,2457.2,1.57089318]
[1728849695862,0.40701,2457.3,2457.2,1.57089318]
[1728849696259,5.10147,2457.5,2457.1,1.0618559]
[1728849696462,0.40702,2457.2,2457.1,1.0618559]
[1728849696670,0.40702,2457.2,2457.1,2.98833506]
[1728849696862,0.40702,2457.2,2457.1,1.57089869]
[1728849698569,0.40701,2457.3,2457.2,0.40702]
[1728849698960,2.24145,2457.5,2457.1,1.4688859]
[1728849699162,0.4128,2457.2,2457.1,1.4688859]
[1728849699367,0.4128,2457.2,2457.1,1.97791518]
[1728849699676,0.4128,2457.2,2457.1,2.14447593]
[1728849700266,0.4128,2457.2,2457.1,1.97791518]
[1728849700969,0.4128,2457.2,2457.1,1.57088518]
[1728849701177,0.40704,2457.1,2457.0,1.4590559]
[1728849701367,0.79454,2457.1,2457.0,3.28261808]
[1728849701566,0.3875,2457.1,2457.0,3.68967808]
[1728849701764,0.79454,2457.1,2457.0,3.68967808]
[1728849702574,0.3875,2457.1,2457.0,3.68967808]
[1728849702771,0.81983,2457.2,2457.1,0.40704]
[1728849702979,0.81983,2457.2,2457.1,1.06257063]
[1728849703178,0.81983,2457.2,2457.1,1.46961063]
[1728849703976,3.2078,2457.4,2457.1,1.06257063]
[1728849704172,0.40702,2457.2,2457.1,1.5715935]
[1728849704383,0.40702,2457.2,2457.1,1.46961063]
[1728849704569,0.40702,2457.2,2457.1,1.57160268]
[1728849704772,0.40702,2457.2,2457.0,1.46962063]
[1728849705671,0.40704,2457.1,2457.0,1.06257063]
[1728849705866,0.40704,2457.1,2457.0,3.28270675]
[1728849706073,0.40704,2457.1,2457.0,3.28270696]
[1728849706271,0.40704,2457.1,2457.0,3.15544361]
[1728849706779,0.40704,2457.1,2457.0,2.24721302]
[1728849706978,0.40704,2457.1,2457.0,1.5716331]
[1728849708877,0.40704,2457.1,2457.0,1.73815289]
[1728849709273,0.40704,2457.1,2457.0,1.06257063]
[1728849709671,0.40706,2457.0,2456.9,1.06257063]
[1728849709979,0.81056,2457.0,2456.9,3.28273622]
[1728849710171,0.81056,2457.0,2456.9,3.28273509]
[1728849710370,0.81056,2457.0,2456.9,2.49996499]
[1728849710571,0.81056,2457.0,2456.9,3.28234859]
[1728849711079,0.81056,2457.0,2456.9,3.68941859]
[1728849711978,0.81056,2457.0,2456.9,3.56215079]
[1728849712282,0.81056,2457.0,2456.9,3.68942061]
[1728849713382,0.81056,2457.0,2456.9,3.15508079]
[1728849713585,0.81056,2457.0,2456.9,1.57126371]
[1728849713770,1.23386,2457.0,2456.9,1.57126371]
[1728849714183,1.23386,2457.0,2456.9,1.73778783]
[1728849714381,1.23386,2457.0,2456.9,0.50907122]
[1728849714687,0.8268,2457.0,2456.7,1.06219249]
[1728849714979,0.40709,2456.8,2456.7,1.06219249]
[1728849715179,0.40709,2456.8,2456.7,3.15535803]
[1728849715486,0.38159,2456.8,2456.7,3.56245607]
[1728849715670,0.35609,2456.8,2456.7,4.36895607]
[1728849716483,0.35609,2456.8,2456.7,3.96184607]
[1728849716684,0.35609,2456.8,2456.7,4.36895607]
[1728849717580,0.35609,2456.8,2456.7,2.54435711]
[1728849717878,1.67609,2456.8,2456.7,4.20219595]
[1728849718077,1.67609,2456.8,2456.7,2.78492085]